Workbook

Sheet ORÇAMENTO
A1: <---- NUMERAR SERVIÇOS PARA CPU | C1: Ministério do Desenvolvimento Regional
C2: Companhia de Desenvolvimento dos Vales do São Francisco e do Parnaíba
C3: 1ª Superintendência Regional
B5: OBRA: | C5: ICARAÍ DE MINAS - PAVIMENTAÇÃO ASFÁLTICA EM CBUQ - VIAS DIVERSAS - ITEM 1
B6: DATA: | C6: OUTUBRO / 2023 | G6: BDI Serviços: | I6: ='BDI SERV'!D31/100 -> 0.2412
B7: PRAZO DE EXECUÇÃO: 180 DIAS | G7: BDI Fornecimentos: | I7: ='BDI FORN'!D31/100 -> 0.15
B8: ITEM | C8: DESCRIÇÃO | D8: REFER. | E8: UNID. | F8: QUANT. | G8: P. UNITÁRIO | H8: P.UNIT.C/ BDI | I8: P. TOTAL
A9: A | B9: 1 | C9: SERVIÇOS PRELIMINARES | I9: =SUM(I10:I14) -> 276070.48
A10: 1 | B10: 1.1 | C10: MOBILIZAÇÃO E DESMOBILIZAÇÃO (INCLUSIVE PARA COMUNIDADES) | D10: CPU.1 | E10: GL | F10: 1 | G10: =VLOOKUP(A10,CPU!$A$1:$N$4651,9) -> 18620.44 | H10: =VLOOKUP(A10,CPU!$A$1:$N$4651,10) -> 23111.69 | I10: =ROUND(F10*H10,2) -> 23111.69
A11: 2 | B11: 1.2 | C11: ADMINISTRAÇÃO LOCAL | D11: CPU.2 | E11: GL | F11: 1 | G11: =VLOOKUP(A11,CPU!$A$1:$N$4651,9) -> 178309.38 | H11: =VLOOKUP(A11,CPU!$A$1:$N$4651,10) -> 221317.6 | I11: =ROUND(F11*H11,2) -> 221317.6
A12: 3 | B12: 1.3 | C12: CANTEIRO DE OBRAS | D12: CPU.3 | E12: GL | F12: 1 | G12: =VLOOKUP(A12,CPU!$A$1:$N$4651,9) -> 13900.5 | H12: =VLOOKUP(A12,CPU!$A$1:$N$4651,10) -> 17253.3 | I12: =ROUND(F12*H12,2) -> 17253.3
A13: 4 | B13: 1.4 | C13: PLACA DE OBRA EM CHAPA DE AÇO GALVANIZADO | D13: 103689 | E13: M2 | F13: 3 | G13: =VLOOKUP(A13,CPU!$A$1:$N$4651,9) -> 340.5 | H13: =VLOOKUP(A13,CPU!$A$1:$N$4651,10) -> 422.63 | I13: =ROUND(F13*H13,2) -> 1267.89
A14: 5 | B14: 1.5 | C14: SERVIÇOS TOPOGRÁFICOS PARA PAVIMENTAÇÃO, INCLUSIVE NOTA DE SERVIÇO, ACOMPANHAMENTO E GREIDE | D14: 78472 | E14: M2 | F14: 32000.0019 | G14: =VLOOKUP(A14,CPU!$A$1:$N$4651,9) -> 0.33 | H14: =VLOOKUP(A14,CPU!$A$1:$N$4651,10) -> 0.41 | I14: =ROUND(F14*H14,2) -> 13120
A15: B | B15: 2 | C15: TERRAPLANAGEM E PAVIMENTAÇÃO | I15: =SUM(I16:I22) -> 527559
A16: 6 | B16: 2.1 | C16: ESCAVAÇÃO HORIZONTAL EM SOLO DE 1A CATEGORIA | D16: 101116 | E16: M3 | F16: 9600 | G16: =VLOOKUP(A16,CPU!$A$1:$N$4651,9) -> 2.2 | H16: =VLOOKUP(A16,CPU!$A$1:$N$4651,10) -> 2.73 | I16: =ROUND(F16*H16,2) -> 26208
A17: 7 | B17: 2.2 | C17: CARGA, MANOBRA E DESCARGA DE SOLOS E MATERIAIS GRANULARES EM CAMINHÃO BASCULANTE | D17: 100976 | E17: M3 | F17: 9600 | G17: =VLOOKUP(A17,CPU!$A$1:$N$4651,9) -> 8.71 | H17: =VLOOKUP(A17,CPU!$A$1:$N$4651,10) -> 10.81 | I17: 103776
A18: 8 | B18: 2.3 | C18: REGULARIZAÇÃO E COMPACTAÇÃO DO SUBLEITO | D18: 100576 | E18: M2 | F18: 32000 | G18: =VLOOKUP(A18,CPU!$A$1:$N$4651,9) -> 2.57 | H18: =VLOOKUP(A18,CPU!$A$1:$N$4651,10) -> 3.19 | I18: 102080
A19: 9 | B19: 2.4 | C19: EXECUÇÃO E COMPACTAÇÃO DE BASE E OU SUB BASE PARA PAVIMENTAÇÃO DE SOLOS DE COMPORTAMENTO LATERÍTICO - EXCLUSIVE SOLO, ESCAVAÇÃO, CARGA E TRANSPORTE | D19: 96388 | E19: M3 | F19: 4800 | G19: =VLOOKUP(A19,CPU!$A$1:$N$4651,9) -> 12.47 | H19: =VLOOKUP(A19,CPU!$A$1:$N$4651,10) -> 15.48 | I19: 74304
A20: 10 | B20: 2.5 | C20: IMPRIMAÇÃO COM EMULSÃO ASFÁLTICA (EAI) | D20: 96401 | E20: M2 | F20: 32000 | G20: =VLOOKUP(A20,CPU!$A$1:$N$4651,9) -> 1.23 | H20: =VLOOKUP(A20,CPU!$A$1:$N$4651,10) -> 1.53 | I20: 48960
A21: 11 | B21: 2.6 | C21: PINTURA DE LIGAÇÃO COM EMULSÃO ASFÁLTICA RR-1C | D21: 96402 | E21: M2 | F21: 28400 | G21: =VLOOKUP(A21,CPU!$A$1:$N$4651,9) -> 1.01 | H21: =VLOOKUP(A21,CPU!$A$1:$N$4651,10) -> 1.25 | I21: 35500
A22: 12 | B22: 2.7 | C22: EXECUÇÃO DE PAVIMENTO COM APLICAÇÃO DE CONCRETO ASFÁLTICO USINADO A QUENTE (CBUQ), CAMADA DE ROLAMENTO - EXCLUSIVE TRANSPORTE | D22: 95995 | E22: M3 | F22: 850 | G22: =VLOOKUP(A22,CPU!$A$1:$N$4651,9) -> 129.6 | H22: =VLOOKUP(A22,CPU!$A$1:$N$4651,10) -> 160.86 | I22: 136731
A23: C | B23: 3 | C23: TRANSPORTE DE MATERIAIS | I23: =SUM(I24:I27) -> 322445.01
A24: 13 | B24: 3.1 | C24: TRANSPORTE COM CAMINHÃO BASCULANTE, EM VIA URBANA PAVIMENTADA | D24: 95427 | E24: M3XKM | F24: 200000.002 | G24: =VLOOKUP(A24,CPU!$A$1:$N$4651,9) -> 0.73 | H24: =VLOOKUP(A24,CPU!$A$1:$N$4651,10) -> 0.91 | I24: =ROUND(F24*H24,2) -> 182000
A25: 13.5 | B25: 3.2 | C25: TRANSPORTE COM CAMINHÃO BASCULANTE, EM VIA URBANA EM REVESTIMENTO PRIMÁRIO | D25: 95426 | E25: M3XKM | F25: 90000 | G25: =VLOOKUP(A25,CPU!$A$1:$N$4651,9) -> 1.07 | H25: =VLOOKUP(A25,CPU!$A$1:$N$4651,10) -> 1.33 | I25: =ROUND(F25*H25,2) -> 119700
A26: 14 | B26: 3.3 | C26: TRANSPORTE COM CAMINHÃO CARROCERIA 9T, EM VIA URBANA PAVIMENTADA | D26: 100947 | E26: TXKM | F26: 1500.002957 | G26: =VLOOKUP(A26,CPU!$A$1:$N$4651,9) -> 2.12 | H26: =VLOOKUP(A26,CPU!$A$1:$N$4651,10) -> 2.63 | I26: =ROUND(F26*H26,2) -> 3945.01
A27: 15 | B27: 3.4 | C27: TRANSPORTE COM CAMINHÃO TANQUE DE TRANSPORTE DE MATERIAL ASFÁLTICO DE 30000 L, EM VIA URBANA PAVIMENTADA (BDI DIFERENCIADO) | D27: 102331 | E27: TXKM | F27: 28000 | G27: =VLOOKUP(A27,CPU!$A$1:$N$4651,9) -> 0.52 | H27: =VLOOKUP(A27,CPU!$A$1:$N$4651,10) -> 0.6 | I27: =ROUND(F27*H27,2) -> 16800
A28: D | B28: 4 | C28: OBRAS COMPLEMENTARES | I28: =SUM(I29:I31) -> 688124.98
A29: 16 | B29: 4.1 | C29: GUIA (MEIO-FIO) E SARJETA CONJUGADOS DE CONCRETO, MOLDADA IN LOCO COM EXTRUSORA, 45 CM BASE (15 CM BASE DA GUIA + 30 CM BASE DA SARJETA) X 22 CM ALTURA | D29: 94267 | E29: M | F29: 8000 | G29: =VLOOKUP(A29,CPU!$A$1:$N$4651,9) -> 57.32 | H29: =VLOOKUP(A29,CPU!$A$1:$N$4651,10) -> 71.15 | I29: =ROUND(F29*H29,2) -> 569200
A30: 17 | B30: 4.2 | C30: FORNECIMENTO E INSTALAÇÃO DE PLACA DE SINALIZAÇÃO VIÁRIA - REGULAMENTAÇÃO OCTOGONAL (PARE) 0,60MX0,60M | D30: CPU.4 | E30: UN. | F30: 25 | G30: =VLOOKUP(A30,CPU!$A$1:$N$4651,9) -> 444.73 | H30: =VLOOKUP(A30,CPU!$A$1:$N$4651,10) -> 552 | I30: =ROUND(F30*H30,2) -> 13800
A31: 19 | B31: 4.3 | C31: PINTURA DE EIXO VIÁRIO SOBRE ASFALTO COM TINTA RETRORREFLETIVA A BASE DE RESINA ACRÍLICA COM MICROESFERAS DE VIDRO, APLICAÇÃO MECÂNICA COM DEMARCADORA AUTOPROPELIDA | D31: 102512 | E31: M | F31: 14499.99783 | G31: =VLOOKUP(A31,CPU!$A$1:$N$4651,9) -> 5.84 | H31: =VLOOKUP(A31,CPU!$A$1:$N$4651,10) -> 7.25 | I31: =ROUND(F31*H31,2) -> 105124.98
A32: E | B32: 5 | C32: FORNECIMENTOS - MATERIAL ASFÁLTICO (BDI DIFERENCIADO) | I32: =SUM(I33:I35) -> 1699216.49
A33: 20 | B33: 5.1 | C33: AQUISIÇÃO DE EMULSÃO ASFÁLTICA PARA IMPRIMAÇÃO (EAI) - EXCLUSIVE TRANSPORTE | D33: CPU.6 | E33: T | F33: 45 | G33: =VLOOKUP(A33,CPU!$A$1:$N$4651,9) -> 2689.76 | H33: =VLOOKUP(A33,CPU!$A$1:$N$4651,10) -> 3093.22 | I33: =ROUND(F33*H33,2) -> 139194.9
A34: 21 | B34: 5.2 | C34: AQUISIÇÃO DE EMULSAO ASFALTICA CATIONICA RR-1C - EXCLUSIVE TRANSPORTE | D34: CPU.7 | E34: T | F34: 13.5 | G34: =VLOOKUP(A34,CPU!$A$1:$N$4651,9) -> 2706.7 | H34: =VLOOKUP(A34,CPU!$A$1:$N$4651,10) -> 3112.71 | I34: =ROUND(F34*H34,2) -> 42021.59
A35: 22 | B35: 5.3 | C35: AQUISIÇÃO DE CONCRETO BETUMINOSO USINADO A QUENTE (CBUQ) PARA PAVIMENTACAO ASFALTICA, PADRAO DNIT, FAIXA C, COM CAP 50/70 - EXCLUSIVE TRANSPORTE | D35: CPU.8 | E35: T | F35: 2200 | G35: =VLOOKUP(A35,CPU!$A$1:$N$4651,9) -> 600 | H35: =VLOOKUP(A35,CPU!$A$1:$N$4651,10) -> 690 | I35: =ROUND(F35*H35,2) -> 1518000
B36: TOTAL GERAL DA OBRA COM BDI | I36: =SUM(I9,I15,I23,I28,I32) -> 3513415.96

Sheet CPU
A1: 1 | B1: CODEVASF | E1: COMPOSIÇÃO DE PREÇO UNITÁRIO | I1: =H12 -> 18620.44 | J1: =H14 -> 23111.69 | K1: BDI CALCULADO: | M1: =ORÇAMENTO!I6 -> 0.2412
B2: OBRA: | C2: =ORÇAMENTO!C5 -> ICARAÍ DE MINAS - PAVIMENTAÇÃO ASFÁLTICA EM CBUQ - VIAS DIVERSAS - ITEM 1 | G2: DATA: | H2: =ORÇAMENTO!C6 -> OUTUBRO / 2023 | K2: BDI DIFERENCIADO: | M2: ='BDI FORN'!D31/100 -> 0.15
B3: SERVIÇO: | C3: =VLOOKUP(A1,ORÇAMENTO!A10:I29,3) -> MOBILIZAÇÃO E DESMOBILIZAÇÃO (INCLUSIVE PARA COMUNIDADES) | E3: Referência: | F3: CPU.1 | G3: UNIDADE: | H3: =VLOOKUP(A1,ORÇAMENTO!A10:I29,5) -> GL
B5: TIPO ITEM | C5: CODIGO ITEM | D5: DESCRIÇÃO ITEM | E5: UNIDADE ITEM | F5: COEFICIENTE | G5: PRECO UNITARIO | H5: CUSTO TOTAL
B6: COMPOSICAO | C6: 89876 | D6: CAMINHÃO BASCULANTE 14 M3, COM CAVALO MECÂNICO DE CAPACIDADE MÁXIMA DE TRAÇÃO COMBINADO DE 36000 KG, POTÊNCIA 286 CV, INCLUSIVE SEMIREBOQUE COM CAÇAMBA METÁLICA | E6: CHP DIURNO. | F6: 8 | G6: 316.13 | H6: =ROUNDDOWN(F6*G6,2) -> 2529.04
B7: COMPOSICAO | C7: 89877 | D7: CAMINHÃO BASCULANTE 14 M3, COM CAVALO MECÂNICO DE CAPACIDADE MÁXIMA DE TRAÇÃO COMBINADO DE 36000 KG, POTÊNCIA 286 CV, INCLUSIVE SEMIREBOQUE TRAÇÃO | E7: CHI DIURNO. | F7: 8 | G7: 89.75 | H7: =ROUNDDOWN(F7*G7,2) -> 718
B8: COMPOSICAO | C8: 5914640 | D8: TRANSPORTE COM CAVALO MECÂNICO COM SEMIRREBOQUE COM CAPACIDADE DE 30 T - RODOVIA PAVIMENTADA | E8: T.KM | F8: 8707 | G8: 0.58 | H8: =ROUNDDOWN(F8*G8,2) -> 5050.06
B9: COMPOSICAO | C9: 5914639 | D9: TRANSPORTE COM CAVALO MECÂNICO COM SEMIRREBOQUE COM CAPACIDADE DE 30 T - PARA COMUNIDADES (MORRINHOS E CURRALINHO) | E9: T.KM | F9: 968 | G9: 0.72 | H9: =ROUNDDOWN(F9*G9,2) -> 696.96
B10: COMPOSIÇÃO | C10: 88316 | D10: SERVENTE COM ENCARGOS COMPLEMENTARES | E10: H | F10: 16 | G10: 19.76 | H10: =ROUNDDOWN(F10*G10,2) -> 316.16
B11: PRODUÇÃO DA EQUIPE | E11: 0.5 | F11: CUSTO | H11: =SUM(H6:H10) -> 9310.22
B12: TOTAL | H12: =H11/E11 -> 18620.44 | I12: OK
B13: BDI % | H13: =1+$M$1 -> 1.2412
B14: TOTAL DO SERVIÇO - R$ | H14: =ROUND(H12*H13,2) -> 23111.69
A16: =A1+1 -> 2 | B16: CODEVASF | E16: COMPOSIÇÃO DE PREÇO UNITÁRIO | I16: =H31 -> 178309.38 | J16: =H33 -> 221317.6
B17: OBRA: | C17: =$C$2 -> ICARAÍ DE MINAS - PAVIMENTAÇÃO ASFÁLTICA EM CBUQ - VIAS DIVERSAS - ITEM 1 | G17: DATA: | H17: =$H$2 -> OUTUBRO / 2023
B18: SERVIÇO: | C18: =VLOOKUP(A16,ORÇAMENTO!$A$10:$I$29,3) -> ADMINISTRAÇÃO LOCAL | E18: SINAPI | F18: CPU.2 | G18: UNIDADE: | H18: =VLOOKUP(A16,ORÇAMENTO!$A$10:$I$29,5) -> GL
B20: TIPO ITEM | C20: CODIGO ITEM | D20: DESCRIÇÃO ITEM | E20: UNIDADE ITEM | F20: COEFICIENTE | G20: PRECO UNITARIO | H20: CUSTO TOTAL
B21: INSUMO | C21: 14250 | D21: ENERGIA ELÉTRICA | E21: kwh | F21: 60 | G21: 0.94 | H21: =ROUNDDOWN(F21*G21,2) -> 56.4
B22: INSUMO | C22: 44480 | D22: TARIFA FORNECIMENTO DE ÁGUA/ESGOTO | E22: M3 | F22: 6 | G22: 17.78 | H22: 106.68
B23: COTAÇÃO | C23: MERC. | D23: TELEFONE (PLANO CONTROLE) | E23: UNID | F23: 2 | G23: 59.9 | H23: 119.8
B24: INSUMO | C24: ED-50155 SEINFRA | D24: BANHEIRO QUÍMICO 110 X 120 X 230 CM COM MANUTENÇÃO (CONSIDERANDO OBRAS SIMULTÂNEAS) | E24: MÊS | F24: 2 | G24: 820 | H24: 1640
B25: COMPOSICAO | C25: 90777 | D25: Engenheiro Civil Júnior com encargos complementares | E25: H | F25: 55 | G25: 114.12 | H25: 6276.6
B26: COMPOSICAO | C26: 90776 | D26: Encarregado Geral com encargos complementares | E26: H | F26: 220 | G26: 57.73 | H26: 12700.6
B27: COMPOSICAO | C27: 88321 | D27: Tecnico de Laboratório com encargos complementares | E27: H | F27: 110 | G27: 45.45 | H27: 4999.5
B28: COMPOSICAO | C28: 100309 | D28: Tecnico em Segurança do Trabalho com encargos complementares | E28: H | F28: 55 | G28: 45.71 | H28: 2514.05
B29: COMPOSICAO | C29: 90772 | D29: Auxiliar de escritório com encargos complementares | E29: H | F29: 55 | G29: 23.72 | H29: 1304.6
B30: PRODUÇÃO DA EQUIPE | E30: =1/6 -> 0.1666666667 | F30: CUSTO | H30: =SUM(H21:H29) -> 29718.23
B31: TOTAL | H31: =ROUND(H30/E30,2) -> 178309.38 | I31: OK
B32: BDI % | H32: =1+$M$1 -> 1.2412
B33: TOTAL DO SERVIÇO - R$ | H33: =ROUND(H31*H32,2) -> 221317.6
A35: =A16+1 -> 3 | B35: CODEVASF | E35: COMPOSIÇÃO DE PREÇO UNITÁRIO | I35: =H45 -> 13900.5 | J35: =H47 -> 17253.3
B36: OBRA: | C36: =$C$2 -> ICARAÍ DE MINAS - PAVIMENTAÇÃO ASFÁLTICA EM CBUQ - VIAS DIVERSAS - ITEM 1 | G36: DATA: | H36: =$H$2 -> OUTUBRO / 2023
B37: SERVIÇO: | C37: =VLOOKUP(A35,ORÇAMENTO!$A$10:$I$29,3) -> CANTEIRO DE OBRAS | E37: SINAPI | F37: =VLOOKUP(A35,ORÇAMENTO!$A$10:$I$29,4) -> CPU.3 | G37: UNIDADE: | H37: =VLOOKUP(A35,ORÇAMENTO!$A$10:$I$29,5) -> GL
B39: TIPO ITEM | C39: CODIGO ITEM | D39: DESCRIÇÃO ITEM | E39: UNIDADE ITEM | F39: COEFICIENTE | G39: PRECO UNITARIO | H39: CUSTO TOTAL
B40: INSUMO | C40: 10775 | D40: LOCACAO DE CONTAINER COM 1 SANITARIO, PARA ESCRITORIO,COMPLETO, SEM DIVISORIAS INTERNAS | E40: MÊS | F40: 6 | G40: 975 | H40: =ROUNDDOWN(F40*G40,2) -> 5850
B41: INSUMO | C41: 10779 | D41: LOCACAO DE CONTAINER P/ SANITARIO, C/ 5 BACIAS, 1 LAVATORIO E 4 MICTORIOS | E41: MÊS | F41: 6 | G41: 1218.75 | H41: 7312.5
B42: INSUMO | C42: 37525 | D42: TELA PLASTICA TECIDA LISTRADA BRANCA E LARANJA, TIPO GUARDA CORPO, EM POLIETILENO MONOFILADO, ROLO 1,20 X 50 M (L X C) | E42: M | F42: 200 | G42: 3.69 | H42: 738
H43: 0
B44: PRODUÇÃO DA EQUIPE | E44: 1 | F44: CUSTO | H44: =SUM(H40:H43) -> 13900.5
B45: TOTAL | H45: =H44/E44 -> 13900.5 | I45: OK
B46: BDI % | H46: =1+$M$1 -> 1.2412
B47: TOTAL DO SERVIÇO - R$ | H47: =ROUND(H45*H46,2) -> 17253.3
A49: =A35+1 -> 4 | B49: CODEVASF | E49: COMPOSIÇÃO DE PREÇO UNITÁRIO | I49: =H63 -> 340.5 | J49: =H65 -> 422.63
B50: OBRA: | C50: =$C$2 -> ICARAÍ DE MINAS - PAVIMENTAÇÃO ASFÁLTICA EM CBUQ - VIAS DIVERSAS - ITEM 1 | G50: DATA: | H50: =$H$2 -> OUTUBRO / 2023
B51: SERVIÇO: | C51: =VLOOKUP(A49,ORÇAMENTO!$A$10:$I$29,3) -> PLACA DE OBRA EM CHAPA DE AÇO GALVANIZADO | E51: SINAPI | F51: =VLOOKUP(A49,ORÇAMENTO!$A$10:$I$29,4) -> 103689 | G51: UNIDADE: | H51: =VLOOKUP(A49,ORÇAMENTO!$A$10:$I$29,5) -> M2
B53: TIPO ITEM | C53: CODIGO ITEM | D53: DESCRIÇÃO ITEM | E53: UNIDADE ITEM | F53: COEFICIENTE | G53: PRECO UNITARIO | H53: CUSTO TOTAL
B54: INSUMO | C54: 4509 | D54: SARRAFO *2,5 X 10* CM EM PINUS, MISTA OU EQUIVALENTE DA REGIAO - BRUTA | E54: M | F54: 3,2083000 | G54: 4,41 | H54: =ROUNDDOWN(F54*G54,2) -> 14.14
B55: INSUMO | C55: 4813 | D55: PLACA DE OBRA (PARA CONSTRUCAO CIVIL) EM CHAPA GALVANIZADA *N. 22*, ADESIVADA, DE *2,4 X 1,2* M (SEM POSTES PARA FIXACAO) | E55: M2 | F55: 1,0000000 | G55: 250,00 | H55: 250
B56: INSUMO | C56: 5065 | D56: PREGO DE ACO POLIDO COM CABECA 10 X 10 | E56: KG | F56: 0,0113000 | G56: 36,57 | H56: 0.41
B57: INSUMO | C57: 5069 | D57: PREGO DE ACO POLIDO COM CABECA 17 X 27 | E57: KG | F57: 0,0132000 | G57: 19,59 | H57: 0.25
B58: COMPOSICAO | C58: 88262 | D58: CARPINTEIRO DE FORMAS COM ENCARGOS COMPLEMENTARES | E58: H | F58: 0,3729000 | G58: 27,05 | H58: 10.08
B59: COMPOSICAO | C59: 88316 | D59: SERVENTE COM ENCARGOS COMPLEMENTARES | E59: H | F59: 1,1186000 | G59: 19,76 | H59: 22.1
B60: COMPOSICAO | C60: 4115 | D60: MADEIRA ROLICA TRATADA, D = 12 A 15 CM, H = 3,00 M, EM EUCALIPTO OU EQUIVALENTE | E60: M | F60: 2 | G60: 21.76 | H60: 43.52
H61: 0
B62: PRODUÇÃO DA EQUIPE | E62: 1 | F62: CUSTO | H62: =SUM(H54:H61) -> 340.5
B63: TOTAL | H63: =H62/E62 -> 340.5 | I63: OK
B64: BDI % | H64: =1+$M$1 -> 1.2412
B65: TOTAL DO SERVIÇO - R$ | H65: =ROUND(H63*H64,2) -> 422.63
A67: =A49+1 -> 5 | B67: CODEVASF | E67: COMPOSIÇÃO DE PREÇO UNITÁRIO | I67: =H79 -> 0.33 | J67: =H81 -> 0.41
B68: OBRA: | C68: =$C$2 -> ICARAÍ DE MINAS - PAVIMENTAÇÃO ASFÁLTICA EM CBUQ - VIAS DIVERSAS - ITEM 1 | G68: DATA: | H68: =$H$2 -> OUTUBRO / 2023
B69: SERVIÇO: | C69: =VLOOKUP(A67,ORÇAMENTO!$A$10:$I$29,3) -> SERVIÇOS TOPOGRÁFICOS PARA PAVIMENTAÇÃO, INCLUSIVE NOTA DE SERVIÇO, ACOMPANHAMENTO E GREIDE | E69: SINAPI | F69: =VLOOKUP(A67,ORÇAMENTO!$A$10:$I$29,4) -> 78472 | G69: UNIDADE: | H69: =VLOOKUP(A67,ORÇAMENTO!$A$10:$I$29,5) -> M2
B71: TIPO ITEM | C71: CODIGO ITEM | D71: DESCRIÇÃO ITEM | E71: UNIDADE ITEM | F71: COEFICIENTE | G71: PRECO UNITARIO | H71: CUSTO TOTAL
B72: COMPOSICAO | C72: 88253 | D72: AUXILIAR DE TOPÓGRAFO COM ENCARGOS COMPLEMENTARES | E72: H | F72: 0.0025 | G72: 21.57 | H72: =ROUNDDOWN(F72*G72,2) -> 0.05
B73: COMPOSICAO | C73: 88288 | D73: NIVELADOR COM ENCARGOS COMPLEMENTARES | E73: H | F73: 0.0025 | G73: 26.99 | H73: =ROUNDDOWN(F73*G73,2) -> 0.06
B74: COMPOSICAO | C74: 88316 | D74: SERVENTE COM ENCARGOS COMPLEMENTARES | E74: H | F74: 0.0075 | G74: 19.76 | H74: 0.14
B75: COMPOSICAO | C75: 88597 | D75: DESENHISTA DETALHISTA COM ENCARGOS COMPLEMENTARES | E75: H | F75: 0.002 | G75: 29.72 | H75: 0.05
B76: COMPOSICAO | C76: 92145 | D76: CAMINHONETE CABINE SIMPLES COM MOTOR 1.6 FLEX, CÂMBIO MANUAL, POTÊNCIA 101/104 CV, 2 PORTAS | E76: CHP | F76: 0.0005 | G76: 74.75 | H76: 0.03
H77: =ROUNDDOWN(F77*G77,2) -> 0
B78: PRODUÇÃO DA EQUIPE | E78: 1 | F78: CUSTO | H78: =SUM(H72:H77) -> 0.33
B79: TOTAL | H79: =H78/E78 -> 0.33 | I79: OK
B80: BDI % | H80: =1+$M$1 -> 1.2412
B81: TOTAL DO SERVIÇO - R$ | H81: =ROUND(H79*H80,2) -> 0.41
A83: =A67+1 -> 6 | B83: CODEVASF | E83: COMPOSIÇÃO DE PREÇO UNITÁRIO | I83: =H92 -> 2.2 | J83: =H94 -> 2.73
B84: OBRA: | C84: =$C$2 -> ICARAÍ DE MINAS - PAVIMENTAÇÃO ASFÁLTICA EM CBUQ - VIAS DIVERSAS - ITEM 1 | G84: DATA: | H84: =$H$2 -> OUTUBRO / 2023
B85: SERVIÇO: | C85: =VLOOKUP(A83,ORÇAMENTO!$A$10:$I$29,3) -> ESCAVAÇÃO HORIZONTAL EM SOLO DE 1A CATEGORIA | E85: SINAPI | F85: =VLOOKUP(A83,ORÇAMENTO!$A$10:$I$29,4) -> 101116 | G85: UNIDADE: | H85: =VLOOKUP(A83,ORÇAMENTO!$A$10:$I$29,5) -> M3
B87: TIPO ITEM | C87: CODIGO ITEM | D87: DESCRIÇÃO ITEM | E87: UNIDADE ITEM | F87: COEFICIENTE | G87: PRECO UNITARIO | H87: CUSTO TOTAL
B88: COMPOSICAO | C88: 5847 | D88: TRATOR DE ESTEIRAS, POTÊNCIA 170 HP, PESO OPERACIONAL 19 T, CAÇAMBA 5,2 M3 | E88: CHP | F88: 0,0048000 | G88: 253,93 | H88: =ROUNDDOWN(F88*G88,2) -> 1.21
B89: COMPOSICAO | C89: 5849 | D89: TRATOR DE ESTEIRAS, POTÊNCIA 170 HP, PESO OPERACIONAL 19 T, CAÇAMBA 5,2 M3 | E89: CHI | F89: 0,0082000 | G89: 90,40 | H89: =ROUNDDOWN(F89*G89,2) -> 0.74
B90: COMPOSICAO | C90: 88316 | D90: SERVENTE COM ENCARGOS COMPLEMENTARES | E90: H | F90: 0,0131000 | G90: 19,76 | H90: =ROUNDDOWN(F90*G90,2) -> 0.25
B91: PRODUÇÃO DA EQUIPE | E91: 1 | F91: CUSTO | H91: =SUM(H88:H90) -> 2.2
B92: TOTAL | H92: =H91/E91 -> 2.2 | I92: OK
B93: BDI % | H93: =1+$M$1 -> 1.2412
B94: TOTAL DO SERVIÇO - R$ | H94: =ROUND(H92*H93,2) -> 2.73
A96: 7 | B96: CODEVASF | E96: COMPOSIÇÃO DE PREÇO UNITÁRIO | I96: =H106 -> 8.71 | J96: =H108 -> 10.81
B97: OBRA: | C97: =$C$2 -> ICARAÍ DE MINAS - PAVIMENTAÇÃO ASFÁLTICA EM CBUQ - VIAS DIVERSAS - ITEM 1 | G97: DATA: | H97: =$H$2 -> OUTUBRO / 2023
B98: SERVIÇO: | C98: =VLOOKUP(A96,ORÇAMENTO!$A$10:$I$29,3) -> CARGA, MANOBRA E DESCARGA DE SOLOS E MATERIAIS GRANULARES EM CAMINHÃO BASCULANTE | E98: SINAPI | F98: =VLOOKUP(A96,ORÇAMENTO!$A$10:$I$29,4) -> 100976 | G98: UNIDADE: | H98: =VLOOKUP(A96,ORÇAMENTO!$A$10:$I$29,5) -> M3
B100: TIPO ITEM | C100: CODIGO ITEM | D100: DESCRIÇÃO ITEM | E100: UNIDADE ITEM | F100: COEFICIENTE | G100: PRECO UNITARIO | H100: CUSTO TOTAL
B101: COMPOSICAO | C101: 5940 | D101: PÁ CARREGADEIRA SOBRE RODAS, POTÊNCIA LÍQUIDA 128 HP, CAPACIDADE DA CAÇAMBA 1,7 A 2,8 M3, PESO OPERACIONAL 11632 KG | E101: CHP | F101: 0,0083000 | G101: 217,72 | H101: =ROUNDDOWN(F101*G101,2) -> 1.8
B102: COMPOSICAO | C102: 5942 | D102: PÁ CARREGADEIRA SOBRE RODAS, POTÊNCIA LÍQUIDA 128 HP, CAPACIDADE DA CAÇAMBA 1,7 A 2,8 M3, PESO OPERACIONAL 11632 KG | E102: CHI | F102: 0,0074000 | G102: 95,85 | H102: =ROUNDDOWN(F102*G102,2) -> 0.7
B103: COMPOSICAO | C103: 89883 | D103: CAMINHÃO BASCULANTE 18 M3, COM CAVALO MECÂNICO DE CAPACIDADE MÁXIMA DE TRAÇÃO COMBINADO DE 45000 KG, POTÊNCIA 330 CV, INCLUSIVE SEMIREBOQUE COM CAÇAMBA METÁLICA | E103: CHP | F103: 0,0153000 | G103: 348,45 | H103: =ROUNDDOWN(F103*G103,2) -> 5.33
B104: COMPOSICAO | C104: 89884 | D104: CAMINHÃO BASCULANTE 18 M3, COM CAVALO MECÂNICO DE CAPACIDADE MÁXIMA DE TRAÇÃO COMBINADO DE 45000 KG, POTÊNCIA 330 CV, INCLUSIVE SEMIREBOQUE COM CAÇAMBA METÁLICA | E104: CHI | F104: 0,0095000 | G104: 93,65 | H104: =ROUNDDOWN(F104*G104,2) -> 0.88
B105: PRODUÇÃO DA EQUIPE | E105: 1 | F105: CUSTO | H105: =SUM(H101:H104) -> 8.71
B106: TOTAL | H106: =H105/E105 -> 8.71 | I106: OK
B107: BDI % | H107: =1+$M$1 -> 1.2412
B108: TOTAL DO SERVIÇO - R$ | H108: =ROUND(H106*H107,2) -> 10.81
A110: 8 | B110: CODEVASF | E110: COMPOSIÇÃO DE PREÇO UNITÁRIO | I110: =H124 -> 2.57 | J110: =H126 -> 3.19
B111: OBRA: | C111: =$C$2 -> ICARAÍ DE MINAS - PAVIMENTAÇÃO ASFÁLTICA EM CBUQ - VIAS DIVERSAS - ITEM 1 | G111: DATA: | H111: =$H$2 -> OUTUBRO / 2023
B112: SERVIÇO: | C112: =VLOOKUP(A110,ORÇAMENTO!$A$10:$I$29,3) -> REGULARIZAÇÃO E COMPACTAÇÃO DO SUBLEITO | E112: SINAPI | F112: =VLOOKUP(A110,ORÇAMENTO!$A$10:$I$29,4) -> 100576 | G112: UNIDADE: | H112: M2
B114: TIPO ITEM | C114: CODIGO ITEM | D114: DESCRIÇÃO ITEM | E114: UNIDADE ITEM | F114: COEFICIENTE | G114: PRECO UNITARIO | H114: CUSTO TOTAL
B115: COMPOSICAO | C115: 5901 | D115: CAMINHÃO PIPA 10.000 L TRUCADO, PESO BRUTO TOTAL 23.000 KG, CARGA ÚTIL MÁXIMA 15.935 KG, DISTÂNCIA ENTRE EIXOS 4,8 M, POTÊNCIA 230 CV, INCLUSIVE TANQUE DE AÇO PARA TRANSPORTE DE ÁGUA | E115: CHP | F115: 0,0010000 | G115: 294,94 | H115: =ROUNDDOWN(F115*G115,2) -> 0.29
B116: COMPOSICAO | C116: 5903 | D116: CAMINHÃO PIPA 10.000 L TRUCADO, PESO BRUTO TOTAL 23.000 KG, CARGA ÚTIL MÁXIMA 15.935 KG, DISTÂNCIA ENTRE EIXOS 4,8 M, POTÊNCIA 230 CV, INCLUSIVE TANQUE DE AÇO PARA TRANSPORTE DE ÁGUA | E116: CHI | F116: 0,0070000 | G116: 72,55 | H116: 0.5
B117: COMPOSICAO | C117: 5932 | D117: MOTONIVELADORA POTÊNCIA BÁSICA LÍQUIDA (PRIMEIRA MARCHA) 125 HP, PESO BRUTO 13032 KG, LARGURA DA LÂMINA DE 3,7 M | E117: CHP | F117: 0,0001000 | G117: 262,71 | H117: 0.02
B118: COMPOSICAO | C118: 5934 | D118: MOTONIVELADORA POTÊNCIA BÁSICA LÍQUIDA (PRIMEIRA MARCHA) 125 HP, PESO BRUTO 13032 KG, LARGURA DA LÂMINA DE 3,7 M | E118: CHI | F118: 0,0080000 | G118: 109,40 | H118: 0.87
B119: COMPOSICAO | C119: 73436 | D119: ROLO COMPACTADOR VIBRATÓRIO PÉ DE CARNEIRO PARA SOLOS, POTÊNCIA 80 HP, PESO OPERACIONAL SEM/COM LASTRO 7,4 / 8,8 T, LARGURA DE TRABALHO 1,68 M | E119: CHP | F119: 0,0020000 | G119: 163,19 | H119: 0.32
B120: COMPOSICAO | C120: 88316 | D120: SERVENTE COM ENCARGOS COMPLEMENTARES | E120: H | F120: 0,0080000 | G120: 19,76 | H120: 0.15
B121: COMPOSICAO | C121: 93244 | D121: ROLO COMPACTADOR VIBRATÓRIO PÉ DE CARNEIRO PARA SOLOS, POTÊNCIA 80 HP, PESO OPERACIONAL SEM/COM LASTRO 7,4 / 8,8 T, LARGURA DE TRABALHO 1,68 M | E121: CHI | F121: 0,0060000 | G121: 71,18 | H121: 0.42
B123: PRODUÇÃO DA EQUIPE | E123: 1 | F123: CUSTO | H123: =SUM(H115:H122) -> 2.57
B124: TOTAL | H124: =H123/E123 -> 2.57 | I124: OK
B125: BDI % | H125: =1+$M$1 -> 1.2412
B126: TOTAL DO SERVIÇO - R$ | H126: =ROUND(H124*H125,2) -> 3.19
A128: 9 | B128: CODEVASF | E128: COMPOSIÇÃO DE PREÇO UNITÁRIO | I128: =H144 -> 12.47 | J128: =H146 -> 15.48
B129: OBRA: | C129: =$C$2 -> ICARAÍ DE MINAS - PAVIMENTAÇÃO ASFÁLTICA EM CBUQ - VIAS DIVERSAS - ITEM 1 | G129: DATA: | H129: =$H$2 -> OUTUBRO / 2023
B130: SERVIÇO: | C130: =VLOOKUP(A128,ORÇAMENTO!$A$10:$I$29,3) -> EXECUÇÃO E COMPACTAÇÃO DE BASE E OU SUB BASE PARA PAVIMENTAÇÃO DE SOLOS DE COMPORTAMENTO LATERÍTICO - EXCLUSIVE SOLO, ESCAVAÇÃO, CARGA E TRANSPORTE | E130: SINAPI | F130: =VLOOKUP(A128,ORÇAMENTO!$A$10:$I$29,4) -> 96388 | G130: UNIDADE: | H130: =VLOOKUP(A128,ORÇAMENTO!$A$10:$I$29,5) -> M3
B132: TIPO ITEM | C132: CODIGO ITEM | D132: DESCRIÇÃO ITEM | E132: UNIDADE ITEM | F132: COEFICIENTE | G132: PRECO UNITARIO | H132: CUSTO TOTAL
B133: COMPOSICAO | C133: 5684 | D133: ROLO COMPACTADOR VIBRATÓRIO DE UM CILINDRO AÇO LISO, POTÊNCIA 80 HP, PESO OPERACIONAL MÁXIMO 8,1 T, IMPACTO DINÂMICO 16,15 / 9,5 T, LARGURA DE TRABALHO 1,68 M | E133: CHP | F133: 0,0030000 | G133: 159,98 | H133: =ROUNDDOWN(F133*G133,2) -> 0.47
B134: COMPOSICAO | C134: 5685 | D134: ROLO COMPACTADOR VIBRATÓRIO DE UM CILINDRO AÇO LISO, POTÊNCIA 80 HP, PESO OPERACIONAL MÁXIMO 8,1 T, IMPACTO DINÂMICO 16,15 / 9,5 T, LARGURA DE TRABALHO 1,68 M | E134: CHI | F134: 0,0230000 | G134: 69,53 | H134: 1.59
B135: COMPOSICAO | C135: 5901 | D135: CAMINHÃO PIPA 10.000 L TRUCADO, PESO BRUTO TOTAL 23.000 KG, CARGA ÚTIL MÁXIMA 15.935 KG, DISTÂNCIA ENTRE EIXOS 4,8 M, POTÊNCIA 230 CV, INCLUSIVE TANQUE DE AÇO PARA TRANSPORTE DE ÁGUA | E135: CHP | F135: 0,0040000 | G135: 294,94 | H135: 1.17
B136: COMPOSICAO | C136: 5903 | D136: CAMINHÃO PIPA 10.000 L TRUCADO, PESO BRUTO TOTAL 23.000 KG, CARGA ÚTIL MÁXIMA 15.935 KG, DISTÂNCIA ENTRE EIXOS 4,8 M, POTÊNCIA 230 CV, INCLUSIVE TANQUE DE AÇO PARA TRANSPORTE DE ÁGUA | E136: CHI | F136: 0,0220000 | G136: 72,55 | H136: 1.59
B137: COMPOSICAO | C137: 5932 | D137: MOTONIVELADORA POTÊNCIA BÁSICA LÍQUIDA (PRIMEIRA MARCHA) 125 HP, PESO BRUTO 13032 KG, LARGURA DA LÂMINA DE 3,7 M | E137: CHP | F137: 0,0080000 | G137: 262,71 | H137: 2.1
B138: COMPOSICAO | C138: 5934 | D138: MOTONIVELADORA POTÊNCIA BÁSICA LÍQUIDA (PRIMEIRA MARCHA) 125 HP, PESO BRUTO 13032 KG, LARGURA DA LÂMINA DE 3,7 M | E138: CHI | F138: 0,0190000 | G138: 109,40 | H138: 2.07
B139: COMPOSICAO | C139: 88316 | D139: SERVENTE COM ENCARGOS COMPLEMENTARES | E139: H | F139: 0,0260000 | G139: 19,76 | H139: 0.51
B140: COMPOSICAO | C140: 96463 | D140: ROLO COMPACTADOR DE PNEUS, ESTATICO, PRESSAO VARIAVEL, POTENCIA 110 HP, PESO SEM/COM LASTRO 10,8/27 T, LARGURA DE ROLAGEM 2,30 M | E140: CHP | F140: 0,0040000 | G140: 218,21 | H140: 0.87
B141: COMPOSICAO | C141: 96464 | D141: ROLO COMPACTADOR DE PNEUS, ESTATICO, PRESSAO VARIAVEL, POTENCIA 110 HP, PESO SEM/COM LASTRO 10,8/27 T, LARGURA DE ROLAGEM 2,30 M | E141: CHI | F141: 0,0220000 | G141: 95,83 | H141: 2.1
H142: 0
B143: PRODUÇÃO DA EQUIPE | E143: 1 | F143: CUSTO | H143: =SUM(H133:H142) -> 12.47
B144: TOTAL | H144: =H143/E143 -> 12.47 | I144: OK
B145: BDI % | H145: =1+$M$1 -> 1.2412
B146: TOTAL DO SERVIÇO - R$ | H146: =ROUND(H144*H145,2) -> 15.48
A148: 10 | B148: CODEVASF | E148: COMPOSIÇÃO DE PREÇO UNITÁRIO | I148: =H163 -> 1.23 | J148: =H165 -> 1.53
B149: OBRA: | C149: =$C$2 -> ICARAÍ DE MINAS - PAVIMENTAÇÃO ASFÁLTICA EM CBUQ - VIAS DIVERSAS - ITEM 1 | G149: DATA: | H149: =$H$2 -> OUTUBRO / 2023
B150: SERVIÇO: | C150: =VLOOKUP(A148,ORÇAMENTO!$A$10:$I$29,3) -> IMPRIMAÇÃO COM EMULSÃO ASFÁLTICA (EAI) | E150: SINAPI | F150: =VLOOKUP(A148,ORÇAMENTO!$A$10:$I$29,4) -> 96401 | G150: UNIDADE: | H150: =VLOOKUP(A148,ORÇAMENTO!$A$10:$I$29,5) -> M2
B152: TIPO ITEM | C152: CODIGO ITEM | D152: DESCRIÇÃO ITEM | E152: UNIDADE ITEM | F152: COEFICIENTE | G152: PRECO UNITARIO | H152: CUSTO TOTAL
B153: COMPOSICAO | C153: 5839 | D153: VASSOURA MECÂNICA REBOCÁVEL COM ESCOVA CILÍNDRICA, LARGURA ÚTIL DE VARRIMENTO DE 2,44 M | E153: CHP | F153: 0,0020000 | G153: 10.3 | H153: =ROUNDDOWN(F153*G153,2) -> 0.02
B154: COMPOSICAO | C154: 5841 | D154: VASSOURA MECÂNICA REBOCÁVEL COM ESCOVA CILÍNDRICA, LARGURA ÚTIL DE VARRIMENTO DE 2,44 M | E154: CHI | F154: 0,0040000 | G154: 5.18 | H154: 0.02
B155: INSUMO | C155: ANP | D155: EMULSÃO ASFÁLTICA PARA IMPRIMAÇÃO (FORNECIMENTO COM BDI DIFERENCIADO) | E155: T | F155: =1.3/1000 -> 0.0013 | H155: 0
B156: COMPOSICAO | C156: 83362 | D156: ESPARGIDOR DE ASFALTO PRESSURIZADO, TANQUE 6 M3 COM ISOLAÇÃO TÉRMICA, AQUECIDO COM 2 MAÇARICOS, COM BARRA ESPARGIDORA 3,60 M, MONTADO SOBRE CAMINHÃO TOCO, PBT 14.300 KG, POTÊNCIA 185 CV | E156: CHP | F156: 0,0010000 | G156: 256.34 | H156: 0.25
B157: COMPOSICAO | C157: 88316 | D157: SERVENTE COM ENCARGOS COMPLEMENTARES | E157: H | F157: 0,0060000 | G157: 19.76 | H157: 0.11
B158: COMPOSICAO | C158: 89035 | D158: TRATOR DE PNEUS, POTÊNCIA 85 CV, TRAÇÃO 4X4, PESO COM LASTRO DE 4.675 KG | E158: CHP | F158: 0,0020000 | G158: 135.08 | H158: 0.27
B159: COMPOSICAO | C159: 89036 | D159: TRATOR DE PNEUS, POTÊNCIA 85 CV, TRAÇÃO 4X4, PESO COM LASTRO DE 4.675 KG | E159: CHI | F159: 0,0040000 | G159: 56.48 | H159: 0.22
B160: COMPOSICAO | C160: 91486 | D160: ESPARGIDOR DE ASFALTO PRESSURIZADO, TANQUE 6 M3 COM ISOLAÇÃO TÉRMICA, AQUECIDO COM 2 MAÇARICOS, COM BARRA ESPARGIDORA 3,60 M, MONTADO SOBRE CAMINHÃO TOCO, PBT 14.300 KG, POTÊNCIA 185 CV | E160: CHI | F160: 0,0050000 | G160: 68.43 | H160: 0.34
H161: 0
B162: PRODUÇÃO DA EQUIPE | E162: 1 | F162: CUSTO | H162: =SUM(H153:H161) -> 1.23
B163: TOTAL | H163: =H162/E162 -> 1.23 | I163: OK
B164: BDI % | H164: =1+$M$1 -> 1.2412
B165: TOTAL DO SERVIÇO - R$ | H165: =ROUND(H163*H164,2) -> 1.53
A167: 11 | B167: CODEVASF | E167: COMPOSIÇÃO DE PREÇO UNITÁRIO | I167: =H182 -> 1.01 | J167: =H184 -> 1.25
B168: OBRA: | C168: =$C$2 -> ICARAÍ DE MINAS - PAVIMENTAÇÃO ASFÁLTICA EM CBUQ - VIAS DIVERSAS - ITEM 1 | G168: DATA: | H168: =$H$2 -> OUTUBRO / 2023
B169: SERVIÇO: | C169: =VLOOKUP(A167,ORÇAMENTO!$A$10:$I$29,3) -> PINTURA DE LIGAÇÃO COM EMULSÃO ASFÁLTICA RR-1C | E169: SINAPI | F169: =VLOOKUP(A167,ORÇAMENTO!$A$10:$I$29,4) -> 96402 | G169: UNIDADE: | H169: M2
B171: TIPO ITEM | C171: CODIGO ITEM | D171: DESCRIÇÃO ITEM | E171: UNIDADE ITEM | F171: COEFICIENTE | G171: PRECO UNITARIO | H171: CUSTO TOTAL
B172: COMPOSICAO | C172: 5839 | D172: VASSOURA MECÂNICA REBOCÁVEL COM ESCOVA CILÍNDRICA, LARGURA ÚTIL DE VARRIMENTO DE 2,44 M | E172: CHP | F172: 0,0020000 | G172: 10.3 | H172: =ROUNDDOWN(F172*G172,2) -> 0.02
B173: COMPOSICAO | C173: 5841 | D173: VASSOURA MECÂNICA REBOCÁVEL COM ESCOVA CILÍNDRICA, LARGURA ÚTIL DE VARRIMENTO DE 2,44 M | E173: CHI | F173: 0,0040000 | G173: 5.18 | H173: 0.02
B174: INSUMO | C174: ANP | D174: EMULSAO ASFALTICA CATIONICA RR-2C PARA USO EM PAVIMENTACAO ASFALTICA (COLETADO CAIXA NA ANP ACRESCIDO DE ICMS) | E174: KG | F174: 0,4500000 | H174: 0
B175: COMPOSICAO | C175: 83362 | D175: ESPARGIDOR DE ASFALTO PRESSURIZADO, TANQUE 6 M3 COM ISOLAÇÃO TÉRMICA, AQUECIDO COM 2 MAÇARICOS, COM BARRA ESPARGIDORA 3,60 M, MONTADO SOBRE CAMINHÃO TOCO, PBT 14.300 KG, POTÊNCIA 185 CV | E175: CHP | F175: 0,0004000 | G175: 256.34 | H175: 0.1
B176: COMPOSICAO | C176: 88316 | D176: SERVENTE COM ENCARGOS COMPLEMENTARES | E176: H | F176: 0,0055000 | G176: 19.76 | H176: 0.1
B177: COMPOSICAO | C177: 89035 | D177: TRATOR DE PNEUS, POTÊNCIA 85 CV, TRAÇÃO 4X4, PESO COM LASTRO DE 4.675 KG | E177: CHP | F177: 0,0017000 | G177: 135.08 | H177: 0.22
B178: COMPOSICAO | C178: 89036 | D178: TRATOR DE PNEUS, POTÊNCIA 85 CV, TRAÇÃO 4X4, PESO COM LASTRO DE 4.675 KG | E178: CHI | F178: 0,0038000 | G178: 56.48 | H178: 0.21
B179: COMPOSICAO | C179: 91486 | D179: ESPARGIDOR DE ASFALTO PRESSURIZADO, TANQUE 6 M3 COM ISOLAÇÃO TÉRMICA, AQUECIDO COM 2 MAÇARICOS, COM BARRA ESPARGIDORA 3,60 M, MONTADO SOBRE CAMINHÃO TOCO, PBT 14.300 KG, POTÊNCIA 185 CV | E179: CHI | F179: 0,0051000 | G179: 68.43 | H179: 0.34
H180: 0
B181: PRODUÇÃO DA EQUIPE | E181: 1 | F181: CUSTO | H181: =SUM(H172:H180) -> 1.01
B182: TOTAL | H182: =H181/E181 -> 1.01 | I182: OK
B183: BDI % | H183: =1+$M$1 -> 1.2412
B184: TOTAL DO SERVIÇO - R$ | H184: =ROUND(H182*H183,2) -> 1.25
A186: 12 | B186: CODEVASF | E186: COMPOSIÇÃO DE PREÇO UNITÁRIO | I186: =H204 -> 129.6 | J186: =H206 -> 160.86
B187: OBRA: | C187: =$C$2 -> ICARAÍ DE MINAS - PAVIMENTAÇÃO ASFÁLTICA EM CBUQ - VIAS DIVERSAS - ITEM 1 | G187: DATA: | H187: =$H$2 -> OUTUBRO / 2023
B188: SERVIÇO: | C188: =VLOOKUP(A186,ORÇAMENTO!$A$10:$I$29,3) -> EXECUÇÃO DE PAVIMENTO COM APLICAÇÃO DE CONCRETO ASFÁLTICO USINADO A QUENTE (CBUQ), CAMADA DE ROLAMENTO - EXCLUSIVE TRANSPORTE | E188: SINAPI | F188: =VLOOKUP(A186,ORÇAMENTO!$A$10:$I$29,4) -> 95995 | G188: UNIDADE: | H188: =VLOOKUP(A186,ORÇAMENTO!$A$10:$I$29,5) -> M3
B190: TIPO ITEM | C190: CODIGO ITEM | D190: DESCRIÇÃO ITEM | E190: UNIDADE ITEM | F190: COEFICIENTE | G190: PRECO UNITARIO | H190: CUSTO TOTAL
B191: INSUMO | C191: COTAÇÃO | D191: CONCRETO BETUMINOSO USINADO A QUENTE (CBUQ) PARA PAVIMENTACAO ASFALTICA, PADRAO DNIT, FAIXA C, COM CAP 50/70 - AQUISICAO POSTO USINA (FORNECIMENTO COM BDI DIFERENCIADO) | E191: T | F191: 2,5548000 | H191: =ROUNDDOWN(F191*G191,2) -> 0
B192: COMPOSICAO | C192: 5835 | D192: VIBROACABADORA DE ASFALTO SOBRE ESTEIRAS, LARGURA DE PAVIMENTAÇÃO 1,90 M A 5,30 M, POTÊNCIA 105 HP CAPACIDADE 450 T/H | E192: CHP | F192: 0,0464000 | G192: 396,75 | H192: 18.4
B193: COMPOSICAO | C193: 5837 | D193: VIBROACABADORA DE ASFALTO SOBRE ESTEIRAS, LARGURA DE PAVIMENTAÇÃO 1,90 M A 5,30 M, POTÊNCIA 105 HP CAPACIDADE 450 T/H | E193: CHI | F193: 0,0949000 | G193: 165,12 | H193: 15.66
B194: COMPOSICAO | C194: 88314 | D194: RASTELEIRO COM ENCARGOS COMPLEMENTARES | E194: H | F194: 1,1301000 | G194: 26,52 | H194: 29.97
B195: COMPOSICAO | C195: 91386 | D195: CAMINHÃO BASCULANTE 10 M3, TRUCADO CABINE SIMPLES, PESO BRUTO TOTAL 23.000 KG, CARGA ÚTIL MÁXIMA 15.935 KG, DISTÂNCIA ENTRE EIXOS 4,80 M, POTÊNCIA 230 CV INCLUSIVE CAÇAMBA METÁLICA | E195: CHP | F195: 0,0464000 | G195: 252,13 | H195: 11.69
B196: COMPOSICAO | C196: 95631 | D196: ROLO COMPACTADOR VIBRATORIO TANDEM, ACO LISO, POTENCIA 125 HP, PESO SEM/COM LASTRO 10,20/11,65 T, LARGURA DE TRABALHO 1,73 M | E196: CHP | F196: 0,0805000 | G196: 228,02 | H196: 18.35
B197: COMPOSICAO | C197: 95632 | D197: ROLO COMPACTADOR VIBRATORIO TANDEM, ACO LISO, POTENCIA 125 HP, PESO SEM/COM LASTRO 10,20/11,65 T, LARGURA DE TRABALHO 1,73 M | E197: CHI | F197: 0,0607000 | G197: 89,32 | H197: 5.42
B198: COMPOSICAO | C198: 96155 | D198: TRATOR DE PNEUS COM POTÊNCIA DE 85 CV, TRAÇÃO 4X4, COM VASSOURA MECÂNICA ACOPLADA | E198: CHI | F198: 0,1071000 | G198: 61,42 | H198: 6.57
B199: COMPOSICAO | C199: 96157 | D199: TRATOR DE PNEUS COM POTÊNCIA DE 85 CV, TRAÇÃO 4X4, COM VASSOURA MECÂNICA ACOPLADA | E199: CHP | F199: 0,0341000 | G199: 144,29 | H199: 4.92
B200: COMPOSICAO | C200: 96463 | D200: ROLO COMPACTADOR DE PNEUS, ESTATICO, PRESSAO VARIAVEL, POTENCIA 110 HP, PESO SEM/COM LASTRO 10,8/27 T, LARGURA DE ROLAGEM 2,30 M | E200: CHP | F200: 0,0419000 | G200: 218,21 | H200: 9.14
B201: COMPOSICAO | C201: 96464 | D201: ROLO COMPACTADOR DE PNEUS, ESTATICO, PRESSAO VARIAVEL, POTENCIA 110 HP, PESO SEM/COM LASTRO 10,8/27 T, LARGURA DE ROLAGEM 2,30 M | E201: CHI | F201: 0,0990000 | G201: 95,83 | H201: 9.48
H202: 0
B203: PRODUÇÃO DA EQUIPE | E203: 1 | F203: CUSTO | H203: =SUM(H191:H202) -> 129.6
B204: TOTAL | H204: =H203/E203 -> 129.6 | I204: OK
B205: BDI % | H205: =1+$M$1 -> 1.2412
B206: TOTAL DO SERVIÇO - R$ | H206: =ROUND(H204*H205,2) -> 160.86
A208: 13 | B208: CODEVASF | E208: COMPOSIÇÃO DE PREÇO UNITÁRIO | I208: =H217 -> 0.73 | J208: =H219 -> 0.91
B209: OBRA: | C209: =$C$2 -> ICARAÍ DE MINAS - PAVIMENTAÇÃO ASFÁLTICA EM CBUQ - VIAS DIVERSAS - ITEM 1 | G209: DATA: | H209: =$H$2 -> OUTUBRO / 2023
B210: SERVIÇO: | C210: =VLOOKUP(A208,ORÇAMENTO!$A$10:$I$29,3) -> TRANSPORTE COM CAMINHÃO BASCULANTE, EM VIA URBANA PAVIMENTADA | E210: SINAPI | F210: =VLOOKUP(A208,ORÇAMENTO!$A$10:$I$29,4) -> 95427 | G210: UNIDADE: | H210: =VLOOKUP(A208,ORÇAMENTO!$A$10:$I$29,5) -> M3XKM
B212: TIPO ITEM | C212: CODIGO ITEM | D212: DESCRIÇÃO ITEM | E212: UNIDADE ITEM | F212: COEFICIENTE | G212: PRECO UNITARIO | H212: CUSTO TOTAL
B213: COMPOSICAO | C213: 89883 | D213: CAMINHÃO BASCULANTE 18 M3, COM CAVALO MECÂNICO DE CAPACIDADE MÁXIMA DE TRAÇÃO COMBINADO DE 45000 KG, POTÊNCIA 330 CV, INCLUSIVE SEMIREBOQUE COM CAÇAMBA METÁLICA | E213: CHP | F213: 0,0019000 | G213: 348.45 | H213: =ROUNDDOWN(F213*G213,2) -> 0.66
B214: COMPOSICAO | C214: 89884 | D214: CAMINHÃO BASCULANTE 18 M3, COM CAVALO MECÂNICO DE CAPACIDADE MÁXIMA DE TRAÇÃO COMBINADO DE 45000 KG, POTÊNCIA 330 CV, INCLUSIVE SEMIREBOQUE COM CAÇAMBA METÁLICA | E214: CHI | F214: 0,0008000 | G214: 93.65 | H214: =ROUNDDOWN(F214*G214,2) -> 0.07
H215: =ROUNDDOWN(F215*G215,2) -> 0
B216: PRODUÇÃO DA EQUIPE | E216: 1 | F216: CUSTO | H216: =SUM(H213:H215) -> 0.73
B217: TOTAL | H217: =H216/E216 -> 0.73 | I217: OK
B218: BDI % | H218: =1+$M$1 -> 1.2412
B219: TOTAL DO SERVIÇO - R$ | H219: =ROUND(H217*H218,2) -> 0.91
A221: 13.5 | B221: CODEVASF | E221: COMPOSIÇÃO DE PREÇO UNITÁRIO | I221: =H230 -> 1.07 | J221: =H232 -> 1.33
B222: OBRA: | C222: =$C$2 -> ICARAÍ DE MINAS - PAVIMENTAÇÃO ASFÁLTICA EM CBUQ - VIAS DIVERSAS - ITEM 1 | G222: DATA: | H222: =$H$2 -> OUTUBRO / 2023
B223: SERVIÇO: | C223: =VLOOKUP(A221,ORÇAMENTO!$A$10:$I$29,3) -> TRANSPORTE COM CAMINHÃO BASCULANTE, EM VIA URBANA EM REVESTIMENTO PRIMÁRIO | E223: SINAPI | F223: =VLOOKUP(A221,ORÇAMENTO!$A$10:$I$29,4) -> 95426 | G223: UNIDADE: | H223: =VLOOKUP(A221,ORÇAMENTO!$A$10:$I$29,5) -> M3XKM
B225: TIPO ITEM | C225: CODIGO ITEM | D225: DESCRIÇÃO ITEM | E225: UNIDADE ITEM | F225: COEFICIENTE | G225: PRECO UNITARIO | H225: CUSTO TOTAL
B226: COMPOSICAO | C226: 89883 | D226: CAMINHÃO BASCULANTE 18 M3, COM CAVALO MECÂNICO DE CAPACIDADE MÁXIMA DE TRAÇÃO COMBINADO DE 45000 KG, POTÊNCIA 330 CV, INCLUSIVE SEMIREBOQUE COM CAÇAMBA METÁLICA | E226: CHP | F226: 0.0025 | G226: 348.45 | H226: =ROUNDDOWN(F226*G226,2) -> 0.87
B227: COMPOSICAO | C227: 89884 | D227: CAMINHÃO BASCULANTE 18 M3, COM CAVALO MECÂNICO DE CAPACIDADE MÁXIMA DE TRAÇÃO COMBINADO DE 45000 KG, POTÊNCIA 330 CV, INCLUSIVE SEMIREBOQUE COM CAÇAMBA METÁLICA | E227: CHI | F227: 0,0022000 | G227: 93.65 | H227: =ROUNDDOWN(F227*G227,2) -> 0.2
H228: =ROUNDDOWN(F228*G228,2) -> 0
... 104 more rows

Sheet BDI SERV
B1: DETALHAMENTO DO BDI - SERVIÇOS
B4: Item | C4: Descrição dos Serviços | D4: % | E4: %
D5: PV | E5: CD
B7: 1 | C7: ADMINISTRAÇÃO CENTRAL | E7: 4.01
B8: 1.1 | C8: ESCRITÓRIO CENTRAL
B9: 1.2 | C9: VIAGENS
B10: 1.3 | C10: OUTROS
B12: 2 | C12: IMPOSTOS E TAXAS | D12: =SUM(D13:D16) -> 7.65 | E12: =SUM(E13:E16) -> 9.57
B13: 2.1 | C13: ISS (*) | D13: =5*0.8 -> 4 | E13: =ROUND(D13*1.2515,2) -> 5.01
B14: 2.2 | C14: PIS | D14: 0.65 | E14: =ROUND(D14*1.2515,2) -> 0.81
B15: 2.3 | C15: Cofins | D15: 3 | E15: =ROUND(D15*1.2515,2) -> 3.75
B16: 2.4 | C16: CONTRIBUIÇÃO PREVIDENCIÁRIA SOBRE A RENDA BRUTA | D16: 0 | E16: =ROUND(D16*1.2515,2) -> 0
B18: 3 | C18: TAXA DE RISCO | E18: =SUM(E19:E22) -> 0.96
B19: 3.1 | C19: SEGURO | E19: 0.2
B20: 3.2 | C20: RISCO | E20: 0.56
B21: 3.3 | C21: GARANTIA | E21: 0.2
B23: 4 | C23: DESPESAS FINANCEIRAS | E23: 1.11
B25: 5 | C25: LUCRO | E25: 8
C27: BDI - CALCULADO | E27: =ROUND((((1+(E7+E18)/100)*(1+E23/100)*(1+E25/100)/(1-D12/100)-1)*100),2) -> 24.12
A29: BDI = ((1+((AC+S+R+G)/100))x(1+DF/100)x(1+L/100)/(1-I/100)-1)*100
B31: BDI (CALCULADO): | D31: =ROUND((((1+((E7+E18)/100))*(1+E23/100)*(1+E25/100))/(1-D12/100)-1)*100,2) -> 24.12 | E31: %
A33: (*) ISS CONFORME LEI MUNICIPAL - Considerando as deduções de materiais (Quantidade Estimada de Materiais: 20% )
A37: BDI EM CONFORMIDADE COM OS ACÓRDÃOS Nº 2369/2011 e ACÓRDÃO Nº 2.622/2013 - TCU - PLENÁRIO

Sheet BDI FORN
B1: DETALHAMENTO DO BDI - FORNECIMENTO (MATERIAL ASFÁLTICO)
B4: Item | C4: Descrição dos Serviços | D4: % | E4: %
D5: PV | E5: CD
B7: 1 | C7: ADMINISTRAÇÃO CENTRAL | E7: 3.72
B8: 1.1 | C8: ESCRITÓRIO CENTRAL
B9: 1.2 | C9: VIAGENS
B10: 1.3 | C10: OUTROS
B12: 2 | C12: IMPOSTOS E TAXAS | D12: =SUM(D13:D16) -> 3.65 | E12: =SUM(E13:E16) -> 4.56
B13: 2.1 | C13: ISS (*) | E13: =ROUND(D13*1.2515,2) -> 0
B14: 2.2 | C14: PIS | D14: 0.65 | E14: =ROUND(D14*1.2515,2) -> 0.81
B15: 2.3 | C15: Cofins | D15: 3 | E15: =ROUND(D15*1.2515,2) -> 3.75
B16: 2.4 | C16: CONTRIBUIÇÃO PREVIDENCIÁRIA SOBRE A RENDA BRUTA | D16: 0 | E16: =ROUND(D16*1.2515,2) -> 0
B18: 3 | C18: TAXA DE RISCO | E18: =SUM(E19:E22) -> 0.82
B19: 3.1 | C19: SEGURO | E19: 0.16
B20: 3.2 | C20: RISCO | E20: 0.5
B21: 3.3 | C21: GARANTIA | E21: 0.16
B23: 4 | C23: DESPESAS FINANCEIRAS | E23: 0.94
B25: 5 | C25: LUCRO | E25: 5
C27: BDI - CALCULADO | E27: =ROUND((((1+(E7+E18)/100)*(1+E23/100)*(1+E25/100)/(1-D12/100)-1)*100),2) -> 15
A29: BDI = ((1+((AC+S+R+G)/100))x(1+DF/100)x(1+L/100)/(1-I/100)-1)*100
B31: BDI (CALCULADO): | D31: =ROUND((((1+((E7+E18)/100))*(1+E23/100)*(1+E25/100))/(1-D12/100)-1)*100,2) -> 15 | E31: %
A37: BDI EM CONFORMIDADE COM OS ACÓRDÃOS Nº 2369/2011 e ACÓRDÃO Nº 2.622/2013 - TCU - PLENÁRIO

Sheet CRONOGRAMA
B1: CRONOGRAMA FÍSICO-FINANCEIRO
B2: OBRA: | C2: =ORÇAMENTO!C5 -> ICARAÍ DE MINAS - PAVIMENTAÇÃO ASFÁLTICA EM CBUQ - VIAS DIVERSAS - ITEM 1 | F2: VALOR: | G2: =ORÇAMENTO!I36 -> 3513415.96
F3: PRAZO: | G3: 180 DIAS
B5: ITEM | C5: ETAPAS/DESCRIÇAO | D5: FISICO/ FINANCEIRO | E5: TOTAL ETAPAS | F5: MÊS 1 | G5: MÊS 2 | H5: MÊS 3 | I5: MÊS 4 | J5: MÊS 5 | K5: MÊS 6 | L5: TOTAL
A6: A | B6: =VLOOKUP(A6,ORÇAMENTO!$A$9:$I$36,2) -> 1 | C6: =VLOOKUP(A6,ORÇAMENTO!$A$9:$I$36,3) -> SERVIÇOS PRELIMINARES | D6: FISICO | E6: =ROUND(E7/$G$2,4) -> 0.0786 | F6: 0.1 | G6: 0.2 | H6: 0.2 | I6: 0.2 | J6: 0.2 | K6: 0.1 | L6: =SUM(F6:K6) -> 1
D7: FINANCEIRO | E7: =ORÇAMENTO!I9 -> 276070.48 | F7: =ROUND($E$7*F6,2) -> 27607.05 | G7: 55214.1 | H7: 55214.1 | I7: 55214.1 | J7: 55214.1 | K7: 27607.05 | L7: =SUM(F7:K7) -> 276070.5
A8: B | B8: =VLOOKUP(A8,ORÇAMENTO!$A$9:$I$36,2) -> 2 | C8: =VLOOKUP(A8,ORÇAMENTO!$A$9:$I$36,3) -> TERRAPLANAGEM E PAVIMENTAÇÃO | D8: FISICO | E8: =ROUND(E9/$G$2,4) -> 0.1502 | F8: 0.1 | G8: 0.2 | H8: 0.2 | I8: 0.2 | J8: 0.2 | K8: 0.1 | L8: =SUM(F8:K8) -> 1
D9: FINANCEIRO | E9: =ORÇAMENTO!I15 -> 527559 | F9: =ROUND($E$9*F8,2) -> 52755.9 | G9: 105511.8 | H9: 105511.8 | I9: 105511.8 | J9: 105511.8 | K9: 52755.9 | L9: =SUM(F9:K9) -> 527559
A10: C | B10: =VLOOKUP(A10,ORÇAMENTO!$A$9:$I$36,2) -> 3 | C10: =VLOOKUP(A10,ORÇAMENTO!$A$9:$I$36,3) -> TRANSPORTE DE MATERIAIS | D10: FISICO | E10: =ROUND(E11/$G$2,4) -> 0.0918 | F10: 0.1 | G10: 0.2 | H10: 0.2 | I10: 0.2 | J10: 0.2 | K10: 0.1 | L10: =SUM(F10:K10) -> 1
D11: FINANCEIRO | E11: =ORÇAMENTO!I23 -> 322445.01 | F11: =ROUND($E$11*F10,2) -> 32244.5 | G11: 64489 | H11: 64489 | I11: 64489 | J11: 64489 | K11: 32244.5 | L11: =SUM(F11:K11)-0.04 -> 322444.96
A12: D | B12: =VLOOKUP(A12,ORÇAMENTO!$A$9:$I$36,2) -> 4 | C12: =VLOOKUP(A12,ORÇAMENTO!$A$9:$I$36,3) -> OBRAS COMPLEMENTARES | D12: FISICO | E12: =ROUND(E13/$G$2,4) -> 0.1959 | F12: 0 | G12: 0.2 | H12: 0.2 | I12: 0.2 | J12: 0.2 | K12: 0.2 | L12: =SUM(F12:K12) -> 1
D13: FINANCEIRO | E13: =ORÇAMENTO!I28 -> 688124.98 | F13: =ROUND($E$13*F12,2) -> 0 | G13: 137625 | H13: 137625 | I13: 137625 | J13: 137625 | K13: 137625 | L13: =SUM(F13:K13)-0.02 -> 688124.98
A14: E | B14: =VLOOKUP(A14,ORÇAMENTO!$A$9:$I$36,2) -> 5 | C14: =VLOOKUP(A14,ORÇAMENTO!$A$9:$I$36,3) -> FORNECIMENTOS - MATERIAL ASFÁLTICO (BDI DIFERENCIADO) | D14: FISICO | E14: =ROUND(E15/$G$2,4) -> 0.4836 | F14: 0.1 | G14: 0.2 | H14: 0.2 | I14: 0.2 | J14: 0.2 | K14: 0.1 | L14: =SUM(F14:K14) -> 1
D15: FINANCEIRO | E15: =ORÇAMENTO!I32 -> 1699216.49 | F15: =ROUND($E$15*F14,2) -> 169921.65 | G15: 339843.3 | H15: 339843.3 | I15: 339843.3 | J15: 339843.3 | K15: 169921.65 | L15: =SUM(F15:K15)-0.02 -> 1699216.48
B16: TOTAL | D16: FISICO | E16: =SUM(F16:K16) -> 1.000000011 | F16: =F17/$E$17 -> 0.08041436118 | G16: 0.2000000023 | H16: 0.2000000023 | I16: 0.2000000023 | J16: 0.2000000023 | K16: 0.1195856411 | L16: =SUM(F16:K16) -> 1.000000011
D17: FINANCEIRO | E17: =E11+E9+E7+E13+E15 -> 3513415.96 | F17: 282529.1 | G17: 702683.2 | H17: 702683.2 | I17: 702683.2 | J17: 702683.2 | K17: 420154.1 | L17: =SUM(F17:K17)-0.04 -> 3513415.96
B19: OBSERVAÇÕES:
